[Event "4NCL Div 1 2024-25"]
[Site "England"]
[Date "2025.04.06"]
[Round "8.15"]
[White "Galyas, Miklos"]
[Black "Mirzoeva, Elmira"]
[Result "1-0"]
[Annotator "ChessBase"]
[ECO "A15"]
[WhiteElo "2374"]
[BlackElo "2258"]
[PlyCount "107"]
[EventDate "2024.11.23"]
[EventType "team-tourn"]
[EventCountry "ENG"]
[SourceTitle "playchess.com"]
[Source "ChessBase"]
[SourceQuality "1"]
[TimeControl "40/6000+30:3000+30"]

1. Nf3 {[%emt 0:11:24]} Nf6 {[%emt 0:10:26]} 2. g3 {[%emt 0:00:10]} b6 {[%emt 0:00:32]} 3. Bg2 {[%emt 0:00:09]} Bb7 {[%emt 0:00:13]} 4. O-O {[%emt 0:00:08]} g6 {[%emt 0:00:28]} 5. b3 {[%emt 0:00:27]} Bg7 {[%emt 0:00:25]} 6. Bb2 {[%emt 0:00:07]} O-O {[%emt 0:00:59]} 7. c4 {[%emt 0:00:11]} d6 {[%emt 0:00:43]} 8. d4 {[%emt 0:00:35]} Nbd7 {[%emt 0:01:33]} 9. Qc2 {[%emt 0:10:37]} c5 {[%emt 0:09:46]} 10. d5 {[%emt 0:05:00]} e5 {[%emt 0:05:22]} 11. dxe6 {[%emt 0:13:03]} fxe6 {[%emt 0:00:27]} 12. Nc3 {[%emt 0:00:07]} Qe7 {[%emt 0:06:16]} 13. Rad1 {[%emt 0:00:28]} Rad8 {[%emt 0:04:06]} 14. Ne1 {[%emt 0:27:17]} Nb8 {[%emt 0:19:24]} 15. Bxb7 {[%emt 0:02:15]} Qxb7 {[%emt 0:01:36]} 16. Ng2 {[%emt 0:00:07]} d5 {[%emt 0:16:34]} 17. Nf4 {[%emt 0:03:15]} Qf7 {[%emt 0:00:40]} 18. cxd5 {[%emt 0:06:14]} exd5 {[%emt 0:00:10]} 19. e4 {[%emt 0:09:42]} d4 {[%emt 0:06:32]} 20. Ncd5 {[%emt 0:05:51]} Nc6 {[%emt 0:00:28]} 21. Nxf6+ {[%emt 0:01:25]} Qxf6 {[%emt 0:04:26]} 22. Qc4+ {[%emt 0:01:20]} Kh8 {[%emt 0:00:23]} 23. Qe6 {[%emt 0:00:13]} Ne5 {[%emt 0:01:43]} 24. Qxf6 {[%emt 0:00:17]} Rxf6 {[%emt 0:00:04]} 25. Kg2 {[%emt 0:01:20]} Rdf8 {[%emt 0:06:40]} 26. Bc1 {[%emt 0:01:18]} b5 {[%emt 0:05:20]} 27. b4 {[%emt 0:01:14]} cxb4 {[%emt 0:03:32]} 28. Rxd4 {[%emt 0:00:07]} Nc4 {[%emt 0:00:03]} 29. Rd7 {[%emt 0:00:45]} a5 {[%emt 0:04:20]} 30. Rb7 {[%emt 0:03:13]} Nd6 {[%emt 0:01:12]} 31. Re7 {[%emt 0:00:22]} R8f7 {[%emt 0:00:39]} 32. e5 {[%emt 0:01:36]} Rxf4 {[%emt 0:00:51]} 33. Bxf4 {[%emt 0:01:23]} Rxe7 {[%emt 0:00:01]} 34. exd6 {[%emt 0:00:08]} Rd7 {[%emt 0:00:31]} 35. Rc1 {[%emt 0:00:34]} Bc3 {[%emt 0:00:13]} 36. Rd1 {[%emt 0:02:00]} a4 {[%emt 0:00:29]} 37. Kf3 {[%emt 0:02:01]} b3 {[%emt 0:00:44]} 38. axb3 {[%emt 0:00:04]} a3 {[%emt 0:00:03]} 39. Ke4 {[%emt 0:00:26]} Kg8 {[%emt 0:01:21]} 40. Kd5 {[%emt 0:01:15]} a2 {[%emt 0:00:37]} 41. Ke6 {[%emt 0:52:15]} Rd8 {[%emt 0:33:01]} 42. d7 {[%emt 0:00:00]} a1=Q {[%emt 0:06:06]} 43. Rxa1 {[%emt 0:00:00]} Bxa1 {[%emt 0:00:03]} 44. Bg5 {[%emt 0:00:00]} Ra8 {[%emt 0:00:32]} 45. d8=Q+ {[%emt 0:00:00]} Rxd8 {[%emt 0:00:05]} 46. Bxd8 {[%emt 0:00:00]} Bd4 {[%emt 0:00:28]} 47. f4 {[%emt 0:00:00]} Bg1 {[%emt 0:02:09]} 48. g4 {[%emt 0:00:00]} Kf8 {[%emt 0:01:09]} 49. h3 {[%emt 0:00:00]} Ke8 {[%emt 0:00:15]} 50. Be7 {[%emt 0:00:00]} Bb6 {[%emt 0:00:53]} 51. f5 {[%emt 0:00:00]} gxf5 {[%emt 0:00:07]} 52. gxf5 {[%emt 0:00:00]} Bd8 {[%emt 0:00:15]} 53. Bxd8 {[%emt 0:00:00]} Kxd8 {[%emt 0:00:02]} 54. Kf7 {[%emt 0:00:00]} 1-0

[Event "4NCL Div 1 2024-25"]
[Site "England"]
[Date "2025.04.06"]
[Round "8.16"]
[White "Smith, Andrew Philip"]
[Black "Terbe, Julianna"]
[Result "1/2-1/2"]
[Annotator "ChessBase"]
[ECO "B23"]
[WhiteElo "2108"]
[BlackElo "2225"]
[PlyCount "69"]
[EventDate "2024.11.23"]
[EventType "team-tourn"]
[EventCountry "ENG"]
[SourceTitle "playchess.com"]
[Source "ChessBase"]
[SourceQuality "1"]
[TimeControl "40/6000+30:3000+30"]

1. e4 {[%emt 0:10:10]} c5 {[%emt 0:10:09]} 2. Nc3 {[%emt 0:00:16]} Nc6 {[%emt 0:00:15]} 3. Bb5 {[%emt 0:00:13]} Nd4 {[%emt 0:00:36]} 4. Bc4 {[%emt 0:00:15]} a6 {[%emt 0:03:03]} 5. Nge2 {[%emt 0:08:27]} b5 {[%emt 0:04:12]} 6. Bd5 {[%emt 0:00:27]} Rb8 {[%emt 0:01:06]} 7. d3 {[%emt 0:16:39]} e6 {[%emt 0:00:58]} 8. Bb3 {[%emt 0:00:13]} Nxb3 {[%emt 0:01:07]} 9. axb3 {[%emt 0:00:10]} d6 {[%emt 0:02:56]} 10. O-O {[%emt 0:00:16]} Nf6 {[%emt 0:01:27]} 11. f4 {[%emt 0:04:25]} Qc7 {[%emt 0:08:15]} 12. Qe1 {[%emt 0:22:46]} b4 {[%emt 0:07:54]} 13. Nd1 {[%emt 0:00:34]} Be7 {[%emt 0:00:22]} 14. Qg3 {[%emt 0:07:57]} g6 {[%emt 0:02:45]} 15. Ne3 {[%emt 0:03:27]} d5 {[%emt 0:06:06]} 16. exd5 {[%emt 0:02:34]} exd5 {[%emt 0:02:10]} 17. Kh1 {[%emt 0:07:07]} O-O {[%emt 0:09:51]} 18. Bd2 {[%emt 0:03:38]} d4 {[%emt 0:07:49]} 19. Nc4 {[%emt 0:00:36]} Nh5 {[%emt 0:01:03]} 20. Qf2 {[%emt 0:03:25]} f5 {[%emt 0:00:10]} 21. Ng1 {[%emt 0:01:23]} Bb7 {[%emt 0:05:57]} 22. Qe2 {[%emt 0:04:16]} Bf6 {[%emt 0:01:18]} 23. Qe6+ {[%emt 0:02:52]} Kh8 {[%emt 0:00:49]} 24. Qd6 {[%emt 0:00:52]} Qg7 {[%emt 0:02:12]} 25. Nf3 {[%emt 0:02:20]} Be7 {[%emt 0:03:06]} 26. Qe5 {[%emt 0:01:03]} Qxe5 {[%emt 0:04:35]} 27. Nfxe5 {[%emt 0:00:17]} Nf6 {[%emt 0:00:09]} 28. Na5 {[%emt 0:02:11]} Bd5 {[%emt 0:04:16]} 29. Nac6 {[%emt 0:00:31]} Rbe8 {[%emt 0:00:04]} 30. Rxa6 {[%emt 0:00:53]} Ng4 {[%emt 0:01:13]} 31. Re1 {[%emt 0:03:23]} Bh4 {[%emt 0:03:44]} 32. Rea1 {[%emt 0:01:58]} Bf6 {[%emt 0:05:54]} 33. Re1 {[%emt 0:00:36]} Bh4 {[%emt 0:00:05]} 34. Rea1 {[%emt 0:00:04]} Bf6 {[%emt 0:00:19]} 35. Re1 {[%emt 0:00:48]} 1/2-1/2

[Event "4NCL Div 1 2024-25"]
[Site "England"]
[Date "2025.04.06"]
[Round "8.17"]
[White "Fernandez, Daniel Howard"]
[Black "Waldhausen Gordon, Frederick"]
[Result "0-1"]
[Annotator "TA"]
[ECO "C50"]
[WhiteElo "2485"]
[BlackElo "2361"]
[PlyCount "122"]
[EventDate "2024.11.23"]
[EventType "team-tourn"]
[EventCountry "ENG"]
[SourceTitle "playchess.com"]
[Source "ChessBase"]
[SourceQuality "1"]
[TimeControl "40/6000+30:3000+30"]

{[%evp 10,122,27,21,25,14,28,-1,17,17,40,42,42,33,40,32,42,21,26,26,38,26,26,26,31,24,25,13,22,12,9,14,23,17,22,16,17,14,15,10,20,14,23,0,0,-21,14,17,19,10,5,15,13,5,14,0,0,0,0,0,0,0,0,-22,-22,-23,-23,-73,-62,-69,-77,-76,-72,-70,-56,-74,-62,-197,-169,-210,-213,-304,-302,-279,-310,-310,-310,-290,-279,-268,-160,-172,-91,-82,-90,-80,-79,-79,-79,-86,-86,-224,-170,-516,-392,-1729,-1718,-1630,-1602,-1583,-998,-29979,-29978,-29981,-29977]} 1. e4 {[%emt 0:10:05]} e5 {[%emt 0:10:02]} 2. Nf3 {[%emt 0:00:36]} Nc6 {[%emt 0:00:15]} 3. Bc4 {[%emt 0:01:07]} Nf6 {[%emt 0:00:09]} 4. d3 {[%emt 0:00:02]} Bc5 {[%emt 0:00:07]} 5. Bg5 {[%emt 0:01:05][%cal Bc1g5,Bg5h4,Bh4g3][%mdl 32]} h6 {[%emt 0:00:24]} 6. Bh4 {[%emt 0:00:29]} Be7 {[%emt 0:02:28] C50: Hungarian Defence and Giuoco Pianissimo.} 7. Bg3 {[%emt 0:04:11]} d6 {[%emt 0:00:17]} 8. Nbd2 {[%emt 0:00:10]} O-O {[%emt 0:01:26] The position is equal.} 9. a4 {[%emt 0:00:08]} Be6 {[%emt 0:02:44]} 10. O-O {[%emt 0:05:38]} Qd7 {[%emt 0:04:02]} 11. c3 {[%emt 0:02:52]} Rfe8 {[%emt 0:05:57]} 12. Re1 {[%emt 0:00:17]} Bf8 {[%emt 0:07:55]} 13. a5 {[%emt 0:04:45]} a6 {[%emt 0:07:28]} 14. h3 {[%emt 0:02:51]} Rad8 $146 {[%emt 0:03:28]} (14... g6 15. Bxe6 Rxe6 16. d4 exd4 17. cxd4 d5 18. e5 Nh5 19. Bh2 Bb4 20. Re2 Nxa5 {0-1 Seemann,J (2494)-Sokolovsky,Y (2552) Wch U20 62nd 2025 (4)}) 15. Qb3 {[%emt 0:02:20]} Rb8 {[%emt 0:03:26]} 16. Nf1 {[%emt 0:09:03]} Bxc4 {[%emt 0:05:42]} 17. Qxc4 {[%emt 0:01:12]} Qe6 {[%emt 0:01:54]} 18. Qxe6 {[%emt 0:01:56]} fxe6 {[%emt 0:01:56]} 19. N1d2 {[%emt 0:00:09]} Rbc8 {[%emt 0:02:12]} 20. Kf1 {[%emt 0:04:00]} g6 {[%emt 0:03:16]} 21. b4 {[%emt 0:00:23]} Kf7 {[%emt 0:01:57]} 22. Reb1 {[%emt 0:05:34]} Ra8 {[%emt 0:03:16]} 23. Ke2 {[%emt 0:03:32]} Bg7 {[%emt 0:03:00]} 24. h4 {[%emt 0:05:27]} Ke7 {[%emt 0:04:30]} 25. Nc4 {[%emt 0:07:43]} Kd7 {[%emt 0:04:17]} 26. Nfd2 {[%emt 0:00:41]} Nh5 {[%emt 0:05:46]} 27. Nb3 {[%emt 0:09:07]} Nxg3+ {[%emt 0:01:03]} 28. fxg3 {[%emt 0:00:03]} Rf8 {[%emt 0:02:08]} 29. g4 {[%emt 0:02:57]} Bf6 {[%emt 0:02:30]} 30. g3 {[%emt 0:00:08]} Be7 {[%emt 0:01:06]} 31. Ne3 {[%emt 0:00:01]} Na7 {[%emt 0:03:06]} 32. c4 {[%emt 0:03:21] Prevents Nb5.} Rf7 {[%emt 0:01:37]} 33. Rf1 {[%emt 0:00:07]} Rxf1 {[%emt 0:01:13]} 34. Rxf1 {[%emt 0:00:03]} Rf8 {[%emt 0:00:37] Repels Rf7} 35. Rb1 {[%emt 0:00:36]} g5 {[%emt 0:02:05]} 36. hxg5 {[%emt 0:01:18]} Bxg5 {[%emt 0:00:47]} 37. Nc2 {[%emt 0:00:02]} Rg8 {[%emt 0:01:10]} 38. d4 {[%emt 0:08:54]} (38. Rh1 $11 {remains equal.}) 38... exd4 $17 {[%emt 0:04:15]} 39. Nbxd4 {[%emt 0:00:08]} Bf6 {[%emt 0:00:56]} 40. Rh1 {[%emt 0:00:06]} Rg6 {[%emt 0:02:23]} (40... Rxg4 41. Rxh6 Bxd4 (41... Rxe4+ $2 42. Kd3 $18) 42. Nxd4 $11) 41. Kf3 {[%emt 0:57:45]} Bg7 {[%emt 0:52:36]} 42. Rh5 {[%emt 0:04:56]} Rg5 {[%emt 0:00:52]} 43. Rxg5 {[%emt 0:01:56]} ({Better is} 43. Rh1 $1 $15) 43... hxg5 $19 {[%emt 0:00:11]} 44. Ke3 {[%emt 0:03:06]} Bxd4+ $1 {[%emt 0:03:27]} 45. Kxd4 {[%emt 0:00:08][%mdl 4096] Endgame [#] KN-KN} (45. Nxd4 Nc6 (45... c5 46. bxc5 Nc6 47. cxd6 $11) 46. Nc2) 45... c5+ $1 {[%emt 0:00:53][%mdl 512]} 46. Kc3 {[%emt 0:00:00]} (46. bxc5 Nc6+) 46... Nc6 {[%emt 0:00:00]} 47. bxc5 {[%emt 0:00:00]} dxc5 {[%emt 0:00:00]} (47... Nxa5 48. cxd6 Kxd6 49. Nd4 $17) 48. Ne1 {[%emt 0:00:00]} Nxa5 {[%emt 0:00:00]} 49. Nf3 {[%emt 0:00:00]} Nc6 {[%emt 0:00:00]} (49... b5 $19 50. cxb5 axb5) 50. e5 $17 {[%emt 0:00:00]} b5 {[%emt 0:00:00]} ({Black should play} 50... Kc7 $19 51. Nxg5 Nxe5) 51. Nxg5 {[%emt 0:00:00]} Nxe5 {[%emt 0:00:00]} (51... b4+ $6 52. Kc2 $11) 52. Ne4 {[%emt 0:00:00]} Kc6 {[%emt 0:00:00]} (52... bxc4 53. Nxc5+ Ke7 54. Nxa6 $14) 53. g5 {[%emt 0:00:00]} bxc4 {[%emt 0:00:00]} 54. Nf6 {[%emt 0:00:00]} a5 {[%emt 0:00:00]} 55. Nh5 {[%emt 0:00:00]} (55. Ne4 $17 {was necessary.}) 55... a4 $19 {[%emt 0:00:00]} 56. Nf4 $2 {[%emt 0:00:00]} (56. Kc2) 56... Kd6 {[%emt 0:00:00] and ...a3 would now be decisive} 57. g6 $2 {[%emt 0:00:00] [#]} (57. Ne2 a3 58. Kc2) 57... Ke7 $1 {[%emt 0:00:00]} ({Not} 57... a3 $2 58. g7 a2 59. Kb2 $18) 58. g7 {[%emt 0:00:00]} Kf7 {[%emt 0:00:00][%cal Of7g8]} 59. Nxe6 {[%emt 0:00:00]} a3 {[%emt 0:00:00]} 60. Kc2 {[%emt 0:00:00]} Nd3 {[%emt 0:00:00]} (60... Kxe6 $2 {is the wrong capture.} 61. g8=Q+ (61. g8=R Kf5 $16) 61... Kf5 62. Qc8+ Ke4 63. Qa8+ (63. Qxc5 a2 $18) 63... Kf5 64. Qxa3 $18) 61. Ng5+ {[%emt 0:00:00]} Kxg7 {[%emt 0:00:00] Weighted Error Value: White=0.45/Black=0.08 (flawless)   Mistake:       	White=6     	Black=2      Inaccurate:     	White=1     	Black=1      OK:         	White=10    	Black=18     Best:        	White=7     	Black=3      Strong:       	---       	Black=2      Brilliant:      	---       	Black=1} 0-1

[Event "4NCL Div 1 2024-25"]
[Site "England"]
[Date "2025.04.06"]
[Round "8.18"]
[White "Olson, Hamish"]
[Black "Makkar, Rajat"]
[Result "0-1"]
[Annotator "ChessBase"]
[ECO "D02"]
[WhiteElo "2374"]
[BlackElo "2432"]
[PlyCount "58"]
[EventDate "2024.11.23"]
[EventType "team-tourn"]
[EventCountry "ENG"]
[SourceTitle "playchess.com"]
[Source "ChessBase"]
[SourceQuality "1"]
[TimeControl "40/6000+30:3000+30"]

1. Nf3 {[%emt 0:10:02]} d5 {[%emt 0:10:17]} 2. g3 {[%emt 0:00:39]} Nc6 {[%emt 0:01:38]} 3. d4 {[%emt 0:00:22]} Bf5 {[%emt 0:00:09]} 4. Bg2 {[%emt 0:01:22]} Nb4 {[%emt 0:00:14]} 5. Na3 {[%emt 0:00:59]} e6 {[%emt 0:00:08]} 6. O-O {[%emt 1:30:06]} Nc6 {[%emt 0:00:25]} 7. b3 {[%emt 0:00:00]} Be7 {[%emt 0:03:07]} 8. c4 {[%emt 0:00:00]} Nf6 {[%emt 0:06:04]} 9. Bb2 {[%emt 0:00:00]} Ne4 {[%emt 0:03:41]} 10. Nb5 {[%emt 0:00:00]} h5 {[%emt 0:01:35]} 11. Rc1 {[%emt 0:00:00]} h4 {[%emt 0:04:59]} 12. Ne5 {[%emt 0:00:00]} hxg3 {[%emt 0:03:42]} 13. hxg3 {[%emt 0:00:00]} Bd6 {[%emt 0:08:32]} 14. Nxd6+ {[%emt 0:00:00]} cxd6 {[%emt 0:01:13]} 15. Nf3 {[%emt 0:00:00]} Qf6 {[%emt 0:02:28]} 16. Re1 {[%emt 0:00:00]} g5 {[%emt 0:01:08]} 17. cxd5 {[%emt 0:00:00]} exd5 {[%emt 0:00:10]} 18. b4 {[%emt 0:00:00]} Bh3 {[%emt 0:12:43]} 19. Bxh3 {[%emt 0:00:00]} Rxh3 {[%emt 0:00:28]} 20. Kg2 {[%emt 0:00:00]} g4 {[%emt 0:01:19]} 21. Qa4 {[%emt 0:00:00]} Kd7 {[%emt 0:07:14]} 22. b5 {[%emt 0:00:00]} gxf3+ {[%emt 0:05:20]} 23. exf3 {[%emt 0:00:00]} Rh2+ {[%emt 0:01:16]} 24. Kxh2 {[%emt 0:00:00]} Qxf3 {[%emt 0:00:40]} 25. bxc6+ {[%emt 0:00:00]} Ke7 {[%emt 0:00:29]} 26. Rxe4+ {[%emt 0:00:00]} Qxe4 {[%emt 0:00:19]} 27. g4 {[%emt 0:00:00]} Qf3 {[%emt 0:00:41]} 28. Re1+ {[%emt 0:00:00]} Kf6 {[%emt 0:00:11]} 29. g5+ {[%emt 0:00:00]} Kg7 {[%emt 0:00:09]} 0-1

[Event "4NCL Div 1 2024-25"]
[Site "England"]
[Date "2025.04.06"]
[Round "8.19"]
[White "Ghasi, Ameet K"]
[Black "Vijayakumar, Rishi"]
[Result "1-0"]
[Annotator "TA"]
[ECO "A08"]
[WhiteElo "2503"]
[BlackElo "2172"]
[PlyCount "105"]
[EventDate "2024.11.23"]
[EventType "team-tourn"]
[EventCountry "ENG"]
[SourceTitle "playchess.com"]
[Source "ChessBase"]
[SourceQuality "1"]
[TimeControl "40/6000+30:3000+30"]

{[%evp 10,105,-13,-16,-10,-17,24,25,27,25,30,29,28,7,25,14,19,8,15,7,55,46,124,112,170,180,175,173,321,108,196,83,85,70,71,63,65,68,78,66,70,59,58,31,32,30,94,91,98,87,97,81,59,55,45,0,95,84,153,133,404,390,85,118,418,420,658,658,709,702,908,835,1009,987,1090,1077,1122,1099,1176,1142,1100,1077,1226,1161,29988,29989,29991,29992,29992,29992,29992,29993,29994,29995,29996,29997,29997,29997]} 1. Nf3 {[%emt 0:11:59]} d5 {[%emt 0:10:26]} 2. g3 {[%emt 0:00:22]} c5 {[%emt 0:01:05]} 3. Bg2 {[%emt 0:00:27]} f6 {[%emt 0:00:12]} 4. O-O {[%emt 0:10:08]} e5 {[%emt 0:00:08]} 5. d3 {[%emt 0:00:08]} Nc6 {[%emt 0:02:02]} 6. c4 {[%emt 0:03:06]} d4 {[%emt 0:01:48] A08: King's Indian Attack.} 7. e3 {[%emt 0:00:27]} Bd6 {[%emt 0:04:32]} 8. exd4 {[%emt 0:14:57]} cxd4 {[%emt 0:00:28] White has an edge.} 9. Nbd2 {[%emt 0:01:10]} Nge7 {[%emt 0:11:19]} 10. a3 {[%emt 0:05:38]} a5 {[%emt 0:08:36]} 11. Rb1 $146 {[%emt 0:02:08]} (11. Ne4 a4 12. b4 Bc7 13. Nc5 O-O 14. Re1 Bd7 15. Nxb7 Qc8 16. Nc5 Bh3 17. Bh1 {1-0 Hevia Alejano,C (2467)-Mahajan,R (2151) PNWCC Online Masters Artist Point 2020 (3)}) 11... Ng6 {[%emt 0:02:33]} 12. h4 {[%emt 0:04:35]} O-O {[%emt 0:02:19]} 13. h5 {[%emt 0:01:00]} Nh8 {[%emt 0:00:53]} 14. Nh4 {[%emt 0:03:33]} Be6 {[%emt 0:02:24]} (14... Nf7 $11) 15. Ne4 $14 {[%emt 0:08:11]} Be7 {[%emt 0:01:33]} ({Black should play} 15... Nf7 $14) 16. f4 $1 $16 {[%emt 0:00:36][%cal Bf2f4,Bf4f5][%mdl 32]} h6 {[%emt 0:36:15]} (16... exf4 $16 17. Bxf4 Nf7) 17. f5 $18 {[%emt 0:04:03]} Bd7 {[%emt 0:01:19]} 18. Ng6 {[%emt 0:00:35] Prevents Nf7} Re8 {[%emt 0:21:38]} (18... Nf7 $142 19. Nxf8 Bxf8) 19. c5 $2 {[%emt 0:06:28]} (19. Bxh6 $18 {and the rest is easy.} gxh6 20. Qg4) 19... a4 {[%emt 0:00:00]} (19... Nf7 $16) 20. Bd2 {[%emt 0:05:16]} (20. Bxh6 $18 {is more deadly.} gxh6 21. Qg4 (21. Nxe7+ Qxe7 22. b4 Na7 $17)) 20... Nf7 $16 {[%emt 0:00:00]} 21. b4 {[%emt 0:00:31] Inhibits Na5.} Na7 $1 {[%emt 0:00:00]} 22. Nf2 {[%emt 0:07:06] White is much more active.} Bc6 {[%emt 0:00:00]} 23. Bxc6 {[%emt 0:00:25][%csl Og6] Strong Square White (g6)} bxc6 {[%emt 0:00:00]} 24. Qxa4 {[%emt 0:02:05] White plays on the queen side and is better} Nb5 {[%emt 0:00:00]} 25. Qb3 {[%emt 0:00:50]} (25. Qd1 {simplifies} Rxa3 26. Ra1 Qa8 27. Rxa3 Qxa3 28. Qa1) 25... Rxa3 {[%emt 0:03:30]} 26. Qe6 {[%emt 0:04:03]} Bd6 $1 {[%emt 0:00:00]} 27. Qc4 {[%emt 0:00:40]} Bc7 {[%emt 0:00:00]} (27... Bf8 $11) 28. Ra1 {[%emt 0:00:40]} Qd5 {[%emt 0:00:00]} 29. Ne4 {[%emt 0:05:20]} Kh7 {[%emt 0:00:00] [#]} 30. Rxa3 $1 {[%emt 0:01:11]} Nxa3 {[%emt 0:00:00]} 31. Qa6 $36 {[%emt 0:00:39][%mdl 2048] White fights for an advantage.} Nb5 {[%emt 0:00:00]} 32. Ra1 {[%emt 0:00:44]} Qd7 {[%emt 0:00:41]} (32... Nc3 $1 $11) 33. g4 {[%emt 0:01:05]} Qd5 {[%emt 0:00:41] White has space advantage and is better} (33... Bb8 $142) 34. Qa2 {[%emt 0:01:38]} Ng5 $2 {[%emt 0:00:50][%mdl 8192] [#]} (34... Bb8 $16 35. Kf1 (35. Qxd5 cxd5 36. Nf2 e4 $11) 35... Bc7) 35. Bxg5 $1 $18 {[%emt 0:01:10]} hxg5 {[%emt 0:00:05]} 36. h6 {[%emt 0:01:49]} ({Much weaker is} 36. Qxd5 $6 cxd5 37. Nf2 Kg8 $11 (37... e4 38. dxe4 dxe4 39. Nxe4 $14)) 36... Qxa2 {[%emt 0:02:41][%mdl 8192]} (36... Nc3 $16 37. Qa7 Qd7 (37... Nxe4 $2 38. Qxc7 Qg8 39. dxe4 $18)) 37. Rxa2 {[%emt 0:00:01]} Bd8 {[%emt 0:00:31]} (37... Rb8 $142 38. Ne7 (38. Ra6 Bd8 $18) 38... Nc3) 38. hxg7 {[%emt 0:00:38]} Kxg7 {[%emt 0:00:10]} 39. Ra6 {[%emt 0:00:25]} Bc7 {[%emt 0:00:38]} 40. Rxc6 {[%emt 0:00:27]} Ra8 {[%emt 0:00:10]} 41. Nxf6 {[%emt 0:51:13] Excellent horsemanship.} Ra1+ {[%emt 0:24:32]} 42. Kg2 {[%emt 0:00:00] aiming for Ne8+.} Ra2+ {[%emt 0:00:14]} 43. Kf3 {[%emt 0:00:00]} Kf7 {[%emt 0:04:09]} 44. Nd7 {[%emt 0:00:00]} e4+ {[%emt 0:02:05]} 45. Kxe4 {[%emt 0:00:00]} Rb2 {[%emt 0:01:19]} 46. Nde5+ {[%emt 0:00:00]} Kg7 {[%emt 0:00:36]} 47. f6+ {[%emt 0:00:00] White mates.} Kh7 {[%emt 0:00:16]} 48. f7 {[%emt 0:00:00]} Bd6 {[%emt 0:00:22]} 49. Rxd6 {[%emt 0:00:00]} Nxd6+ {[%emt 0:00:23]} 50. cxd6 {[%emt 0:00:00]} Rf2 {[%emt 0:00:37]} 51. d7 {[%emt 0:00:00]} Rf1 {[%emt 0:00:19]} 52. d8=Q {[%emt 0:00:00][%csl Gg6][%cal Rd8h8]} Re1+ {[%emt 0:00:37]} 53. Kd5 {[%emt 0:00:00] Weighted Error Value: White=0.12 (very precise) /Black=0.77  Loses game:     	---       	Black=2      Missed win:     	White=1     	---        Mistake:       	White=1     	Black=9      Inaccurate:     	White=1     	Black=1      OK:         	White=17    	Black=7      Best:        	White=1     	Black=2      Strong:       	White=3     	Black=2} 1-0

[Event "4NCL Div 1 2024-25"]
[Site "England"]
[Date "2025.04.06"]
[Round "8.20"]
[White "Gourlay, Iain"]
[Black "Roberson, Peter T"]
[Result "0-1"]
[Annotator "ChessBase"]
[ECO "A21"]
[WhiteElo "2303"]
[BlackElo "2432"]
[PlyCount "96"]
[EventDate "2024.11.23"]
[EventType "team-tourn"]
[EventCountry "ENG"]
[SourceTitle "playchess.com"]
[Source "ChessBase"]
[SourceQuality "1"]
[TimeControl "40/6000+30:3000+30"]

1. c4 {[%emt 0:21:58]} e5 {[%emt 0:10:30]} 2. g3 {[%emt 0:00:05]} Be7 {[%emt 0:00:26]} 3. Nc3 {[%emt 0:00:21]} f5 {[%emt 0:02:05]} 4. d4 {[%emt 0:00:55]} d6 {[%emt 0:01:00]} 5. Bh3 {[%emt 0:07:40]} Nf6 {[%emt 0:08:30]} 6. Nf3 {[%emt 0:02:04]} e4 {[%emt 0:00:50]} 7. Nh4 {[%emt 0:02:10]} g6 {[%emt 0:00:13]} 8. f3 {[%emt 0:11:29]} O-O {[%emt 0:09:50]} 9. Bg5 {[%emt 0:04:50]} Nc6 {[%emt 0:13:50]} 10. O-O {[%emt 0:09:09]} Re8 {[%emt 0:05:41]} 11. Ng2 {[%emt 0:05:44]} exf3 {[%emt 0:13:08]} 12. exf3 {[%emt 0:03:09]} Nh5 {[%emt 0:00:50]} 13. Bxe7 {[%emt 0:03:11]} Rxe7 {[%emt 0:02:06]} 14. Qd2 {[%emt 0:01:44]} Bd7 {[%emt 0:03:40]} 15. g4 {[%emt 0:12:08]} Ng7 {[%emt 0:02:24]} 16. g5 {[%emt 0:02:54]} Rf7 {[%emt 0:03:28]} 17. f4 {[%emt 0:05:25]} Qf8 {[%emt 0:05:44]} 18. Nd5 {[%emt 0:01:18]} Ne6 {[%emt 0:03:31]} 19. Nf6+ {[%emt 0:09:06]} Rxf6 {[%emt 0:00:08]} 20. gxf6 {[%emt 0:00:07]} Ncxd4 {[%emt 0:01:03]} 21. Ne3 {[%emt 0:00:37]} Qxf6 {[%emt 0:02:27]} 22. Bg2 {[%emt 0:00:30]} Re8 {[%emt 0:05:55]} 23. Rae1 {[%emt 0:01:50]} c6 {[%emt 0:04:25]} 24. Nc2 {[%emt 0:00:59]} Nxc2 {[%emt 0:02:51]} 25. Qxc2 {[%emt 0:00:06]} Qd4+ {[%emt 0:00:12]} 26. Qf2 {[%emt 0:01:39]} Qxc4 {[%emt 0:01:14]} 27. Qxa7 {[%emt 0:00:44]} Qb4 {[%emt 0:07:16]} 28. Qf2 {[%emt 0:00:27]} d5 {[%emt 0:00:11]} 29. Re3 {[%emt 0:00:59]} Qd6 {[%emt 0:00:42]} 30. a4 {[%emt 0:01:27]} Ra8 {[%emt 0:00:24]} 31. b3 {[%emt 0:00:35]} Nc5 {[%emt 0:00:04]} 32. Rh3 {[%emt 0:00:14]} Re8 {[%emt 0:00:33]} 33. Qh4 {[%emt 0:00:24]} Re7 {[%emt 0:00:07]} 34. Re1 {[%emt 0:00:41]} Ne4 {[%emt 0:00:37]} 35. Rhe3 {[%emt 0:00:47]} Be6 {[%emt 0:01:00]} 36. Rc1 {[%emt 0:00:31]} Rd7 {[%emt 0:00:31]} 37. Bxe4 {[%emt 0:00:23]} fxe4 {[%emt 0:00:39]} 38. Qf6 {[%emt 0:00:35]} Rf7 {[%emt 0:00:35]} 39. Qe5 {[%emt 0:00:26]} Qxe5 {[%emt 0:00:20]} 40. fxe5 {[%emt 0:00:04]} Rf5 {[%emt 0:00:18]} 41. a5 {[%emt 0:24:09]} Rxe5 {[%emt 0:22:18]} 42. Rc5 {[%emt 0:02:09]} Kf7 {[%emt 0:05:43]} 43. b4 {[%emt 0:02:07]} Kf6 {[%emt 0:00:50]} 44. b5 {[%emt 0:00:57]} cxb5 {[%emt 0:00:35]} 45. Rc7 {[%emt 0:01:42]} d4 {[%emt 0:00:32]} 46. Re1 {[%emt 0:02:35]} Bd5 {[%emt 0:07:51]} 47. Rf1+ {[%emt 0:01:34]} Rf5 {[%emt 0:00:36]} 48. Rxf5+ {[%emt 0:01:12]} gxf5 {[%emt 0:00:44]} 0-1